bitfinex-derivatives/quotes_BNBF0:USTF0_20260114
["timestamp","ask_amount","ask_price","bid_price","bid_amount"]
[1768430446272,1.858,947.16,945.6,0.18363486]
[1768430446273,0.62946975,947.03,945.6,0.18363486]
[1768430446475,0.62946975,947.02,945.6,0.18363486]
[1768430446679,0.62946975,947.01,945.6,0.18363486]
[1768430446978,0.62946975,947.0,945.6,0.18363486]
[1768430447174,0.62946975,946.99,945.6,0.18363486]
[1768430447374,0.62946975,946.98,945.6,0.18363486]
[1768430447576,0.62946975,946.97,945.6,0.18363486]
[1768430447874,0.62946975,946.96,945.6,0.18363486]
[1768430448076,0.62946975,946.95,945.6,0.18363486]
[1768430448276,0.62946975,946.94,945.6,0.18363486]
[1768430448475,0.62946975,946.93,945.6,0.18363486]
[1768430448676,0.62946975,946.92,945.6,0.18363486]
[1768430448979,0.62946975,946.91,945.6,0.18363486]
[1768430449180,0.62946975,946.9,945.6,0.18363486]
[1768430449375,1.858,947.16,945.6,0.18363486]
[1768430449376,0.62946975,946.89,945.6,0.18363486]
[1768430449577,0.62946975,946.88,945.6,0.18363486]
[1768430449781,0.62946975,946.87,945.6,0.18363486]
[1768430449981,0.62946975,946.86,945.6,0.18363486]
[1768430450282,0.62946975,946.85,945.6,0.18363486]
[1768430450482,0.62946975,946.84,945.6,0.18363486]
[1768430450680,0.62946975,946.83,945.6,0.18363486]
[1768430450878,0.62946975,946.82,945.37,1.55743781]
[1768430451079,0.62946975,946.81,945.37,1.55743781]
[1768430451279,0.62946975,946.8,945.31,0.18384489]
[1768430451479,0.62946975,946.79,945.31,0.18384489]
[1768430451680,0.62946975,946.78,945.31,0.18384489]
[1768430451881,0.62946975,946.77,945.21,1.55743781]
[1768430452082,0.62946975,946.76,945.13,0.18387889]
[1768430452282,0.62946975,946.75,945.13,0.18387889]
[1768430452581,0.62946975,946.74,945.13,0.18387889]
[1768430452785,0.62946975,946.73,945.13,0.18387889]
[1768430452986,0.62946975,946.72,945.13,0.18387889]
[1768430453188,0.62946975,946.71,945.13,0.18387889]
[1768430453388,0.62946975,946.7,945.13,0.18387889]
[1768430453584,0.62946975,946.69,945.13,0.18387889]
[1768430453785,0.62946975,946.68,945.13,0.18387889]
[1768430454089,0.62946975,946.67,945.13,0.18387889]
[1768430454389,0.62946975,946.66,945.13,0.18387889]
[1768430454590,0.62946975,946.65,945.13,0.18387889]
[1768430454788,0.62946975,946.64,945.13,0.18387889]
[1768430454987,0.62946975,946.63,945.13,0.18387889]
[1768430455188,0.62946975,946.62,945.13,0.18387889]
[1768430455388,0.62946975,946.61,945.13,0.18387889]
[1768430455589,0.62946975,946.6,945.13,0.18387889]
[1768430455789,0.62946975,946.59,945.13,0.18387889]
[1768430456089,0.62946975,946.58,944.95,1.55743781]
[1768430456291,0.62946975,946.57,944.18,0.01005787]
[1768430456487,0.62946975,946.56,944.31,0.18398145]
[1768430456791,0.62946975,946.55,944.31,0.18398145]
[1768430456985,0.62946975,946.54,944.31,0.18398145]
[1768430457190,0.62946975,946.53,944.31,0.18398145]
[1768430457386,0.62946975,946.52,943.83,1.55743781]
[1768430457593,0.62946975,946.51,943.81,1.55743781]
[1768430457792,0.62946975,946.5,944.22,0.18404129]
[1768430457992,0.62946975,946.49,944.22,0.18404129]
[1768430458292,0.62946975,946.48,944.22,0.18404129]
[1768430458493,0.62946975,946.47,944.22,0.18404129]
[1768430458690,0.62946975,946.46,944.22,0.18404129]
[1768430458893,0.62946975,946.45,944.22,0.18404129]
[1768430459090,0.62946975,946.44,944.22,0.18404129]
[1768430459293,2.6232703,946.78,944.22,0.18404129]
[1768430459294,0.62946975,946.43,944.22,0.18404129]
[1768430459495,0.62946975,946.42,944.22,0.18404129]
[1768430459690,0.62946975,946.41,944.22,0.18404129]
[1768430459890,0.62946975,946.4,944.22,0.18404129]
[1768430460093,0.62946975,946.39,944.22,0.18404129]
[1768430460391,0.62946975,946.38,944.22,0.18404129]
[1768430460694,0.6288082,946.37,944.22,0.18404129]
[1768430460894,0.6288082,946.36,944.22,0.18404129]
[1768430461091,0.6288082,946.35,944.22,0.18404129]
[1768430461292,0.6288082,946.34,944.22,0.18404129]
[1768430461497,0.6288082,946.33,944.22,0.18404129]
[1768430461697,0.6288082,946.32,944.22,0.18404129]
[1768430461897,0.6288082,946.31,944.22,0.18404129]
[1768430462098,0.6288082,946.3,944.22,0.18404129]
[1768430462298,0.6288082,946.29,944.22,0.18404129]
[1768430462498,0.6288082,946.28,944.22,0.18404129]
[1768430462699,0.6288082,946.27,944.22,0.18404129]
[1768430462899,0.6288082,946.26,944.22,0.18404129]
[1768430463095,0.6288082,946.25,944.22,0.18404129]
[1768430463297,0.6288082,946.24,944.22,0.18404129]
[1768430463596,0.6288082,946.23,944.22,0.18404129]
[1768430463795,0.6288082,946.22,944.22,0.18404129]
[1768430464100,0.6288082,946.21,944.22,0.18404129]
[1768430464300,0.6288082,946.2,944.22,0.18404129]
[1768430464599,0.6288082,946.19,944.22,0.18404129]
[1768430464797,0.6288082,946.18,944.22,0.18404129]
[1768430465001,0.6288082,946.17,944.22,0.18404129]
[1768430465200,0.6288082,946.16,944.22,0.18404129]
[1768430465398,0.6288082,946.15,944.22,0.18404129]
[1768430465603,0.6288082,946.14,944.22,0.18404129]
[1768430465901,0.6288082,946.13,944.22,0.18404129]
[1768430466100,0.6288082,946.12,944.22,0.18404129]
[1768430466400,0.6288082,946.11,944.22,0.18404129]
[1768430466600,0.6288082,946.1,944.22,0.18404129]
[1768430466796,0.6288082,946.09,944.22,0.18404129]
[1768430467001,0.6288082,946.08,944.22,0.18404129]
[1768430467202,0.6288082,946.07,944.22,0.18404129]
[1768430467399,0.6288082,946.06,944.22,0.18404129]
[1768430467702,0.6288082,946.05,944.22,0.18404129]
[1768430467903,0.6288082,946.04,944.22,0.18404129]
[1768430468103,0.6288082,946.03,944.22,0.18404129]
[1768430468302,0.6288082,946.02,944.22,0.18404129]
[1768430468504,0.6288082,946.01,944.22,0.18404129]
[1768430468803,0.6288082,946.0,944.22,0.18404129]
[1768430469001,0.6288082,945.99,944.22,0.18404129]
[1768430469205,0.6288082,945.98,944.22,0.18404129]
[1768430469505,0.6288082,945.97,944.22,0.18404129]
[1768430469702,0.6288082,945.96,944.22,0.18404129]
[1768430469901,0.6288082,945.95,944.22,0.18404129]
[1768430470202,0.6288082,945.94,944.22,0.18404129]
[1768430470402,0.6288082,945.93,944.22,0.18404129]
[1768430470602,0.6288082,945.92,944.22,0.18404129]
[1768430470800,0.6288082,945.91,944.22,0.18404129]
[1768430471006,0.6288082,945.9,944.22,0.18404129]
[1768430471201,0.6288082,945.89,944.22,0.18404129]
[1768430471403,0.6288082,945.88,944.22,0.18404129]
[1768430471602,0.6288082,945.87,944.22,0.18404129]
[1768430471804,0.6288082,945.86,944.22,0.18404129]
[1768430472102,0.6288082,945.85,944.22,0.18404129]
[1768430472302,0.6288082,945.84,944.22,0.18404129]
[1768430472508,0.6288082,945.83,944.22,0.18404129]
[1768430472702,0.6288082,945.82,944.22,0.18404129]
[1768430473007,0.6288082,945.81,944.22,0.18404129]
[1768430473208,0.6288082,945.8,944.22,0.18404129]
[1768430473503,0.6288082,945.79,944.22,0.18404129]
[1768430473806,0.6288082,945.78,944.22,0.18404129]
[1768430474007,0.0111121,946.73,944.22,0.18404129]
[1768430474207,0.62912359,946.72,944.22,0.18404129]
[1768430474507,0.62912359,946.71,944.22,0.18404129]
[1768430474806,0.62912359,946.7,944.22,0.18404129]
[1768430475006,0.62912359,946.69,944.22,0.18404129]
[1768430475204,0.62912359,946.68,944.22,0.18404129]
[1768430475404,0.62912359,946.67,944.22,0.18404129]
[1768430475606,0.62912359,946.66,944.22,0.18404129]
[1768430475808,0.62912359,946.65,944.22,0.18404129]
[1768430476006,0.62912359,946.64,944.22,0.18404129]
[1768430476205,0.62912359,946.63,944.22,0.18404129]
[1768430476407,2.6232703,947.11,944.22,0.18404129]
[1768430476408,0.62912359,946.62,944.22,0.18404129]
[1768430476607,0.62912359,946.61,944.22,0.18404129]
[1768430476806,0.62912359,946.6,944.22,0.18404129]
[1768430477006,0.62912359,946.59,944.22,0.18404129]
[1768430477207,0.62912359,946.58,944.22,0.18404129]
[1768430477407,0.62912359,946.57,944.22,0.18404129]
[1768430477609,0.62912359,946.56,944.22,0.18404129]
[1768430477811,0.62912359,946.55,944.22,0.18404129]
[1768430478114,0.62912359,946.54,944.22,0.18404129]
[1768430478312,0.62912359,946.53,944.22,0.18404129]
[1768430478516,0.62912359,946.52,944.22,0.18404129]
[1768430478717,0.62912359,946.51,944.22,0.18404129]
[1768430478918,0.62912359,946.5,944.22,0.18404129]
[1768430479217,0.62912359,946.49,944.22,0.18404129]
[1768430479417,0.62912359,946.48,944.22,0.18404129]
[1768430479612,0.62912359,946.47,944.22,0.18404129]
[1768430479916,0.62912359,946.46,944.22,0.18404129]
[1768430480212,0.62912359,946.45,944.22,0.18404129]
[1768430480416,0.62912359,946.44,944.22,0.18404129]
[1768430480614,0.62912359,946.43,944.22,0.18404129]
[1768430480816,0.62912359,946.42,944.22,0.18404129]
[1768430481014,0.62912359,946.41,944.22,0.18404129]
[1768430481216,0.62912359,946.4,944.22,0.18404129]
[1768430481418,0.62912359,946.39,944.22,0.18404129]
[1768430481615,0.62912359,946.38,944.22,0.18404129]
[1768430481814,0.62912359,946.37,944.22,0.18404129]
[1768430482115,0.62912359,946.36,944.22,0.18404129]
[1768430482318,0.62912359,946.35,944.22,0.18404129]
[1768430482612,0.62912359,946.34,944.22,0.18404129]
[1768430482816,0.62912359,946.33,944.22,0.18404129]
[1768430483017,0.62912359,946.32,944.22,0.18404129]
[1768430483315,0.62912359,946.31,944.22,0.18404129]
[1768430483618,0.62912359,946.3,944.22,0.18404129]
[1768430483918,0.62912359,946.29,944.22,0.18404129]
[1768430484115,0.62912359,946.28,944.22,0.18404129]
[1768430484314,0.62912359,946.27,944.22,0.18404129]
[1768430484514,0.62912359,946.26,944.22,0.18404129]
[1768430484715,0.62912359,946.25,944.22,0.18404129]
[1768430484914,0.62912359,946.24,944.22,0.18404129]
[1768430485119,0.62912359,946.23,944.22,0.18404129]
[1768430485315,0.62912359,946.22,944.22,0.18404129]
[1768430485515,0.62912359,946.21,944.22,0.18404129]
[1768430485720,0.62912359,946.2,944.22,0.18404129]
[1768430485917,0.62912359,946.19,944.22,0.18404129]
[1768430486116,2.6232703,946.91,944.22,0.18404129]
[1768430486117,0.62912359,946.18,944.22,0.18404129]
[1768430486320,0.62912359,946.17,944.22,0.18404129]
[1768430486518,0.62912359,946.16,944.22,0.18404129]
[1768430486719,0.62912359,946.15,944.22,0.18404129]
[1768430486920,0.62912359,946.14,944.22,0.18404129]
[1768430487223,0.62912359,946.13,944.22,0.18404129]
[1768430487424,0.62912359,946.12,944.22,0.18404129]
[1768430487623,0.62912359,946.11,944.22,0.18404129]
[1768430487819,0.62912359,946.1,944.22,0.18404129]
[1768430488022,0.62912359,946.09,944.22,0.18404129]
[1768430488321,0.62912359,946.08,944.22,0.18404129]
[1768430488525,0.62912359,946.07,944.22,0.18404129]
[1768430488721,0.62912359,946.06,944.22,0.18404129]
[1768430488920,0.62912359,946.05,944.22,0.18404129]
[1768430489224,0.62912359,946.04,944.22,0.18404129]
[1768430489426,0.62912359,946.03,944.22,0.18404129]
[1768430489622,0.62912359,946.02,944.22,0.18404129]
[1768430489821,0.62912359,946.01,944.22,0.18404129]
[1768430490022,0.62912359,946.0,944.22,0.18404129]
[1768430490323,0.62912359,945.99,944.22,0.18404129]
[1768430490524,0.62912359,945.98,944.22,0.18404129]
[1768430490727,0.62912359,945.97,944.22,0.18404129]
[1768430490928,0.62912359,945.96,944.22,0.18404129]
[1768430491128,0.62912359,945.95,944.22,0.18404129]
[1768430491329,0.62912359,945.94,944.22,0.18404129]
[1768430491526,0.62912359,945.93,944.22,0.18404129]
[1768430491725,0.62912359,945.92,944.22,0.18404129]
[1768430492031,0.62912359,945.91,944.22,0.18404129]
[1768430492228,0.62912359,945.9,944.22,0.18404129]
[1768430492428,0.62912359,945.89,944.22,0.18404129]
[1768430492625,0.62912359,945.88,944.22,0.18404129]
[1768430492827,0.62912359,945.87,944.22,0.18404129]
[1768430493027,0.62912359,945.86,944.22,0.18404129]
[1768430493227,0.62912359,945.85,944.22,0.18404129]
[1768430493426,0.62912359,945.84,944.22,0.18404129]
[1768430493626,0.62912359,945.83,944.22,0.18404129]
[1768430493827,0.62912359,945.82,944.22,0.18404129]
[1768430494023,0.62912359,945.81,944.22,0.18404129]
[1768430494226,2.6232703,946.69,944.22,0.18404129]
[1768430494227,0.62912359,945.8,944.22,0.18404129]
[1768430494427,0.62912359,945.79,944.22,0.18404129]
[1768430494629,0.62912359,945.78,944.22,0.18404129]
[1768430494826,0.62912359,945.77,944.22,0.18404129]
[1768430495029,0.62912359,945.76,944.22,0.18404129]
[1768430495230,0.62912359,945.75,944.22,0.18404129]
[1768430495424,0.01239823,946.71,944.22,0.18404129]
[1768430495425,0.62912359,945.74,944.22,0.18404129]
[1768430495629,0.62912359,945.73,944.22,0.18404129]
[1768430495930,0.62912359,945.72,944.22,0.18404129]
[1768430496132,0.62912359,945.71,944.22,0.18404129]
[1768430496427,3.67257842,946.91,944.22,0.18404129]
[1768430496428,0.62912359,945.7,944.22,0.18404129]
[1768430496630,0.62912359,945.69,944.22,0.18404129]
[1768430496826,0.62912359,945.68,944.22,0.18404129]
[1768430497026,0.62912359,945.67,944.22,0.18404129]
[1768430497230,0.62912359,945.66,944.22,0.18404129]
[1768430497431,0.62912359,945.65,944.22,0.18404129]
[1768430497633,0.62912359,945.64,944.22,0.18404129]
[1768430497931,0.62912359,945.63,944.22,0.18404129]
[1768430498128,0.62912359,945.62,944.22,0.18404129]
[1768430498432,0.62912359,945.61,944.22,0.18404129]
[1768430498627,0.62912359,945.6,944.22,0.18404129]
[1768430498828,0.62912359,945.59,944.22,0.18404129]
[1768430499128,0.62912359,945.58,944.22,0.18404129]
[1768430499328,0.62912359,945.57,944.22,0.18404129]
[1768430499529,0.62912359,945.56,944.22,0.18404129]
[1768430499729,0.62912359,945.55,944.22,0.18404129]
[1768430499930,0.62912359,945.54,944.22,0.18404129]
[1768430500128,0.62912359,945.53,944.22,0.18404129]
[1768430500332,0.62912359,945.52,944.22,0.18404129]
[1768430500528,0.62912359,945.51,944.22,0.18404129]
[1768430500728,0.62912359,945.5,944.22,0.18404129]
[1768430500931,0.62912359,945.49,944.22,0.18404129]
[1768430501130,0.62912359,945.48,944.22,0.18404129]
[1768430501335,0.62912359,945.47,944.22,0.18404129]
[1768430501534,0.62912359,945.46,944.22,0.18404129]
[1768430501834,0.62912359,945.45,944.22,0.18404129]
[1768430502031,1.222,945.67,944.22,0.18404129]
[1768430502032,0.62912359,945.44,944.22,0.18404129]
[1768430502231,0.62912359,945.43,944.22,0.18404129]
[1768430502435,0.62912359,945.42,944.22,0.18404129]
[1768430502634,0.62912359,945.41,944.22,0.18404129]
[1768430502835,0.62912359,945.4,944.22,0.18404129]
[1768430503036,0.62912359,945.39,944.22,0.18404129]
[1768430503236,0.62912359,945.38,944.22,0.18404129]
[1768430503433,0.62912359,945.37,944.22,0.18404129]
[1768430503736,0.62912359,945.36,944.22,0.18404129]
[1768430503932,0.62912359,945.35,944.22,0.18404129]
[1768430504138,0.62912359,945.34,944.22,0.18404129]
[1768430504438,0.62912359,945.33,944.22,0.18404129]
[1768430504633,0.62912359,945.32,944.22,0.18404129]
[1768430504833,0.62912359,945.31,944.22,0.18404129]
[1768430505033,0.62912359,945.3,944.22,0.18404129]
[1768430505334,0.62912359,945.29,944.22,0.18404129]
[1768430505535,0.62912359,945.28,944.22,0.18404129]
[1768430505737,0.62912359,945.27,944.22,0.18404129]
[1768430505933,1.222,945.67,944.22,0.18404129]
[1768430506234,0.64124765,945.66,944.22,0.18404129]
[1768430506438,0.64124765,945.65,944.22,0.18404129]
[1768430506637,0.64124765,945.64,944.22,0.18404129]
[1768430506833,0.64124765,945.63,944.22,0.18404129]
[1768430507137,0.64124765,945.62,944.22,0.18404129]
[1768430507337,0.64124765,945.61,944.22,0.18404129]
[1768430507638,0.64124765,945.6,944.22,0.18404129]
[1768430507837,0.64124765,945.59,944.22,0.18404129]
[1768430508033,0.64124765,945.58,944.22,0.18404129]
[1768430508240,0.64124765,945.57,944.22,0.18404129]
[1768430508438,0.64124765,945.56,944.22,0.18404129]
[1768430508635,0.64124765,945.55,944.22,0.18404129]
[1768430508936,0.64124765,945.54,944.22,0.18404129]
[1768430509140,0.64124765,945.53,944.22,0.18404129]
[1768430509335,0.64124765,945.52,944.22,0.18404129]
[1768430509536,0.64124765,945.51,944.22,0.18404129]
[1768430509735,0.64124765,945.5,944.22,0.18404129]
[1768430509937,0.64124765,945.49,944.22,0.18404129]
[1768430510137,0.64124765,945.48,944.22,0.18404129]
[1768430510339,0.64124765,945.47,944.22,0.18404129]
[1768430510640,0.64124765,945.46,944.22,0.18404129]
[1768430510937,0.64124765,945.45,944.22,0.18404129]
[1768430511138,0.64124765,945.44,944.22,0.18404129]
[1768430511340,0.64124765,945.43,944.22,0.18404129]
[1768430511637,1.222,945.67,944.22,0.18404129]
[1768430511638,0.64124765,945.42,944.22,0.18404129]
[1768430511836,0.64124765,945.41,944.22,0.18404129]
[1768430512036,0.64124765,945.4,944.22,0.18404129]
[1768430512238,0.64124765,945.39,944.22,0.18404129]
[1768430512438,1.222,945.67,944.22,0.18404129]
[1768430512439,0.64124765,945.38,944.22,0.18404129]
[1768430512736,0.64124765,945.37,944.22,0.18404129]
[1768430512938,0.64124765,945.36,944.22,0.18404129]
[1768430513138,0.64124765,945.35,944.22,0.18404129]
[1768430513342,1.222,945.67,944.22,0.18404129]
[1768430513343,0.64124765,945.34,944.22,0.18404129]
[1768430513636,0.64124765,945.33,944.22,0.18404129]
[1768430513841,0.64124765,945.32,944.22,0.18404129]
[1768430514037,0.64124765,945.31,944.22,0.18404129]
[1768430514238,0.64124765,945.3,944.22,0.18404129]
[1768430514438,0.64124765,945.29,944.22,0.18404129]
[1768430514641,0.64124765,945.28,944.22,0.18404129]
[1768430514940,0.64124765,945.27,944.22,0.18404129]
[1768430515140,1.222,945.67,944.22,0.18404129]
[1768430515437,0.64081771,945.66,944.22,0.18404129]
[1768430515638,0.64081771,945.65,944.22,0.18404129]
[1768430515838,0.64081771,945.64,944.22,0.18404129]
[1768430516141,0.64081771,945.63,944.22,0.18404129]
[1768430516440,0.64081771,945.62,944.22,0.18404129]
[1768430516641,0.64081771,945.61,944.22,0.18404129]
[1768430516839,0.64081771,945.6,944.22,0.18404129]
[1768430517042,0.64081771,945.59,944.22,0.18404129]
[1768430517240,0.64081771,945.58,944.22,0.18404129]
[1768430517437,0.64081771,945.57,944.22,0.18404129]
[1768430517641,0.64081771,945.56,944.22,0.18404129]
[1768430517937,0.64081771,945.55,944.22,0.18404129]
[1768430518140,0.64081771,945.54,944.22,0.18404129]
[1768430518338,0.64081771,945.53,944.22,0.18404129]
[1768430518538,0.64081771,945.52,944.22,0.18404129]
[1768430518836,0.64081771,945.51,944.22,0.18404129]
[1768430519042,0.64081771,945.5,944.22,0.18404129]
[1768430519237,0.64081771,945.49,944.22,0.18404129]
[1768430519438,0.64081771,945.48,944.22,0.18404129]
[1768430519638,0.64081771,945.47,944.22,0.18404129]
[1768430519838,0.64081771,945.46,944.22,0.18404129]
[1768430520040,0.64081771,945.45,944.22,0.18404129]
[1768430520338,0.64081771,945.44,944.22,0.18404129]
[1768430520538,0.64081771,945.43,944.22,0.18404129]
[1768430520740,0.64081771,945.42,944.22,0.18404129]
[1768430520941,0.64081771,945.41,944.22,0.18404129]
[1768430521136,0.64081771,945.4,944.22,0.18404129]
[1768430521342,1.222,945.67,944.22,0.18404129]
[1768430521541,0.64062528,945.66,944.22,0.18404129]
[1768430521741,0.64062528,945.65,944.22,0.18404129]
[1768430522038,0.64062528,945.64,944.22,0.18404129]
[1768430522241,0.64062528,945.63,944.22,0.18404129]
[1768430522441,0.64062528,945.62,944.22,0.18404129]
[1768430522738,0.64062528,945.61,944.22,0.18404129]
[1768430522938,0.64062528,945.6,944.22,0.18404129]
[1768430523139,0.64062528,945.59,944.22,0.18404129]
[1768430523442,0.64062528,945.58,944.22,0.18404129]
[1768430523638,0.64062528,945.57,944.22,0.18404129]
[1768430523837,0.64062528,945.56,944.22,0.18404129]
[1768430524041,0.64062528,945.55,944.22,0.18404129]
[1768430524242,0.64062528,945.54,944.22,0.18404129]
[1768430524444,1.222,945.67,944.22,0.18404129]
[1768430524642,0.63765282,945.66,944.22,0.18404129]
[1768430524842,0.63765282,945.65,944.22,0.18404129]
[1768430525145,0.63765282,945.64,944.22,0.18404129]
[1768430525346,0.63765282,945.63,944.22,0.18404129]
[1768430525545,0.63765282,945.62,944.22,0.18404129]
[1768430525746,0.63765282,945.61,944.22,0.18404129]
[1768430526046,1.222,945.67,944.22,0.18404129]
[1768430526244,0.63741263,945.66,944.22,0.18404129]
[1768430526445,0.63741263,945.65,944.22,0.18404129]
[1768430526648,1.222,945.67,944.22,0.18404129]
[1768430526946,0.63715008,945.66,944.22,0.18404129]
[1768430527246,0.63715008,945.65,944.22,0.18404129]
[1768430527446,1.222,945.67,944.22,0.18404129]
[1768430532252,0.01237706,946.6,944.22,0.18404129]
[1768430532453,0.63634541,946.59,944.22,0.18404129]
[1768430532649,0.63634541,946.58,944.22,0.18404129]
[1768430532851,0.63634541,946.57,944.22,0.18404129]
[1768430533048,0.63634541,946.56,944.22,0.18404129]
[1768430533348,0.63634541,946.55,944.22,0.18404129]
[1768430533550,0.63634541,946.54,944.22,0.18404129]
[1768430533850,0.63634541,946.53,944.22,0.18404129]
[1768430534051,0.63634541,946.52,944.22,0.18404129]
[1768430534349,0.63634541,946.51,944.22,0.18404129]
[1768430534554,0.63634541,946.5,944.22,0.18404129]
[1768430534753,0.63634541,946.49,944.22,0.18404129]
[1768430534951,0.63634541,946.48,944.22,0.18404129]
[1768430535152,0.63634541,946.47,944.22,0.18404129]
[1768430535351,0.63634541,946.46,944.22,0.18404129]
[1768430535553,0.63634541,946.45,944.22,0.18404129]
[1768430535750,0.63634541,946.44,944.22,0.18404129]
[1768430535954,0.63634541,946.43,944.22,0.18404129]
[1768430536250,0.63634541,946.42,944.22,0.18404129]
[1768430536448,0.63634541,946.41,944.22,0.18404129]
[1768430536647,0.63634541,946.4,944.22,0.18404129]
[1768430536848,0.63634541,946.39,944.22,0.18404129]
[1768430537055,0.63634541,946.38,944.22,0.18404129]
[1768430537254,0.63634541,946.37,944.22,0.18404129]
[1768430537555,0.63634541,946.36,944.22,0.18404129]
[1768430537854,0.63634541,946.35,944.22,0.18404129]
[1768430538052,0.63634541,946.34,944.22,0.18404129]
[1768430538249,0.63634541,946.33,944.22,0.18404129]
[1768430538451,0.63634541,946.32,944.22,0.18404129]
[1768430538749,0.63634541,946.31,944.22,0.18404129]
[1768430538950,0.63634541,946.3,944.22,0.18404129]
[1768430539250,0.63634541,946.29,944.22,0.18404129]
[1768430539450,0.63634541,946.28,944.22,0.18404129]
[1768430539648,0.63634541,946.27,944.22,0.18404129]
[1768430539850,0.63634541,946.26,944.22,0.18404129]
[1768430540054,0.63634541,946.25,944.22,0.18404129]
[1768430540350,0.63634541,946.24,944.22,0.18404129]
[1768430540552,0.63634541,946.23,944.22,0.18404129]
[1768430540753,0.63634541,946.22,944.22,0.18404129]
[1768430540950,0.63634541,946.21,944.22,0.18404129]
[1768430541150,0.63634541,946.2,944.22,0.18404129]
[1768430541347,0.63634541,946.19,944.22,0.18404129]
[1768430541550,0.63634541,946.18,944.22,0.18404129]
[1768430541750,0.63634541,946.17,944.22,0.18404129]
[1768430542050,0.63634541,946.16,944.22,0.18404129]
[1768430542253,0.63634541,946.15,944.22,0.18404129]
[1768430542451,0.63634541,946.14,944.22,0.18404129]
[1768430542655,0.63634541,946.13,944.22,0.18404129]
[1768430542951,0.63634541,946.12,944.22,0.18404129]
[1768430543254,0.63634541,946.11,944.22,0.18404129]
[1768430543455,0.63634541,946.1,944.22,0.18404129]
[1768430543655,0.63634541,946.09,944.22,0.18404129]
[1768430543854,0.63634541,946.08,944.22,0.18404129]
[1768430544153,0.63634541,946.07,944.22,0.18404129]
[1768430544354,0.63634541,946.06,944.22,0.18404129]
[1768430544658,0.63634541,946.05,944.22,0.18404129]
[1768430544958,0.63634541,946.04,944.22,0.18404129]
[1768430545155,0.63634541,946.03,944.22,0.18404129]
[1768430545360,6.72407945,946.4,944.22,0.18404129]
[1768430545361,0.63634541,946.02,944.22,0.18404129]
[1768430545658,0.63634541,946.01,944.22,0.18404129]
[1768430545860,0.63634541,946.0,944.22,0.18404129]
[1768430546155,0.63634541,945.99,944.22,0.18404129]
[1768430546359,0.63634541,945.98,944.22,0.18404129]
[1768430546558,0.63634541,945.97,944.22,0.18404129]
[1768430546759,0.63634541,945.96,944.22,0.18404129]
[1768430546960,0.63634541,945.95,944.22,0.18404129]
[1768430547161,0.63634541,945.94,944.22,0.18404129]
[1768430547357,0.63634541,945.93,944.22,0.18404129]
[1768430547657,0.63634541,945.92,944.22,0.18404129]
[1768430547860,0.63634541,945.91,944.22,0.18404129]
[1768430548059,0.63634541,945.9,944.22,0.18404129]
[1768430548258,0.63634541,945.89,944.22,0.18404129]
[1768430548462,0.63634541,945.88,944.22,0.18404129]
[1768430548762,0.63634541,945.87,944.22,0.18404129]
[1768430548962,0.63634541,945.86,944.22,0.18404129]
[1768430549160,0.63634541,945.85,944.22,0.18404129]
[1768430549362,0.63634541,945.84,944.22,0.18404129]
[1768430549564,0.63634541,945.83,944.22,0.18404129]
[1768430549862,0.63634541,945.82,944.22,0.18404129]
[1768430550059,0.63634541,945.81,944.22,0.18404129]
[1768430550257,0.63634541,945.8,944.22,0.18404129]
[1768430550563,0.63634541,945.79,944.22,0.18404129]
[1768430550760,0.63634541,945.78,944.22,0.18404129]
[1768430550961,0.63634541,945.77,944.22,0.18404129]
[1768430551156,0.63634541,945.76,944.22,0.18404129]
[1768430551356,0.63634541,945.75,944.22,0.18404129]
[1768430551561,0.63634541,945.74,944.22,0.18404129]
[1768430551757,6.72407945,946.4,944.22,0.18404129]
[1768430551963,0.63681782,946.39,944.22,0.18404129]
[1768430552164,0.63681782,946.38,944.22,0.18404129]
[1768430552360,0.63681782,946.37,944.22,0.18404129]
[1768430552563,0.63681782,946.36,944.22,0.18404129]
[1768430552864,0.63681782,946.35,944.22,0.18404129]
[1768430553061,0.63681782,946.34,944.22,0.18404129]
[1768430553262,0.63681782,946.33,944.22,0.18404129]
[1768430553459,0.63681782,946.32,944.22,0.18404129]
[1768430553664,0.63681782,946.31,944.22,0.18404129]
[1768430553965,0.63681782,946.3,944.22,0.18404129]
[1768430554166,0.63681782,946.29,944.22,0.18404129]
[1768430554466,0.63681782,946.28,944.22,0.18404129]
[1768430554665,0.63681782,946.27,944.22,0.18404129]
[1768430554966,0.63681782,946.26,944.22,0.18404129]
[1768430555261,0.63681782,946.25,944.22,0.18404129]
[1768430555464,0.63681782,946.24,944.22,0.18404129]
[1768430555663,0.63681782,946.23,944.22,0.18404129]
[1768430555860,0.63681782,946.22,944.22,0.18404129]
[1768430556060,0.63681782,946.21,944.22,0.18404129]
[1768430556263,0.63681782,946.2,944.22,0.18404129]
[1768430556463,0.63681782,946.19,944.22,0.18404129]
[1768430556663,0.63681782,946.18,944.22,0.18404129]
[1768430556865,0.63681782,946.17,944.22,0.18404129]
[1768430557065,0.63681782,946.16,944.22,0.18404129]
[1768430557262,0.63681782,946.15,944.22,0.18404129]
[1768430557461,6.72407945,946.4,944.22,0.18404129]
[1768430557462,0.63681782,946.14,944.22,0.18404129]
[1768430557663,0.63681782,946.13,944.22,0.18404129]
[1768430557863,0.63681782,946.12,944.22,0.18404129]